{"text_format":"3","workbook":"xlsx","n_sheets":1,"sheets":["Tekanan Darah & Gula Darah"],"not_rendered":{"defined_names":9},"read":"whole","date_system":"1900"}

{"sheet":"Tekanan Darah & Gula Darah","index":0,"n_rows":13,"n_cols":11,"rows_kept":13,"merged":[[0,1,4,3],[0,4,0,9],[1,4,1,6],[1,7,1,9],[3,7,4,7],[3,8,4,8],[3,9,4,9]]}
[null,"Pencatat Tekanan Darah\n& Glukosa",null,null,"Sesuaikan nilai skala dalam sel E2 hingga J5 di bawah ini."]
[{"$nulls":4},"TEKANAN DARAH",null,null,"GULA DARAH"]
[{"$nulls":4},120,"SISTOLIK",140,70,100,150]
[{"$nulls":4},80,"DIASTOLIK",90,"RENDAH","NORMAL","TINGGI"]
[{"$nulls":4},"TEKANAN TARGET",null,"HUBUNGI DOKTER"]
[null,"Tanggal","Waktu","Acara","Sistolik","Diastolik","Denyut Jantung","Gula Darah","Tingkat","Status","Catatan"]
[null,{"$f":"TODAY()","v":"2018-06-28"},"06:00:00","Bangun",129,79,72,55,{"$f":"TekananDanGulaDarah[[#This Row],[Gula Darah]]","v":55},{"$f":"IFERROR(IF(TekananDanGulaDarah[[#This Row],[Tingkat]]=0,\"\",IF(TekananDanGulaDarah[[#This Row],[Tingkat]]<=GRendah,\"RENDAH\",IF(AND(TekananDanGulaDarah[[#This Row],[Tingkat]]>GRendah,TekananDanGulaDarah[[#This Row],[Tingkat]]<GTinggi),\"NORMAL\",\"TINGGI\"))), \"\")","v":"RENDAH"}]
[null,{"$f":"TODAY()","v":"2018-06-28"},"07:00:00","Sebelum Makan",120,80,74,70,{"$f":"TekananDanGulaDarah[[#This Row],[Gula Darah]]","v":70},{"$f":"IFERROR(IF(TekananDanGulaDarah[[#This Row],[Tingkat]]=0,\"\",IF(TekananDanGulaDarah[[#This Row],[Tingkat]]<=GRendah,\"RENDAH\",IF(AND(TekananDanGulaDarah[[#This Row],[Tingkat]]>GRendah,TekananDanGulaDarah[[#This Row],[Tingkat]]<GTinggi),\"NORMAL\",\"TINGGI\"))), \"\")","v":"RENDAH"}]
[null,"2018-06-28","09:00:00","Setelah Makan",133,80,75,75,{"$f":"TekananDanGulaDarah[[#This Row],[Gula Darah]]","v":75},{"$f":"IFERROR(IF(TekananDanGulaDarah[[#This Row],[Tingkat]]=0,\"\",IF(TekananDanGulaDarah[[#This Row],[Tingkat]]<=GRendah,\"RENDAH\",IF(AND(TekananDanGulaDarah[[#This Row],[Tingkat]]>GRendah,TekananDanGulaDarah[[#This Row],[Tingkat]]<GTinggi),\"NORMAL\",\"TINGGI\"))), \"\")","v":"NORMAL"}]
[null,"2018-06-28","10:00:00","Hanya TD",143,91,75,190,{"$f":"TekananDanGulaDarah[[#This Row],[Gula Darah]]","v":190},{"$f":"IFERROR(IF(TekananDanGulaDarah[[#This Row],[Tingkat]]=0,\"\",IF(TekananDanGulaDarah[[#This Row],[Tingkat]]<=GRendah,\"RENDAH\",IF(AND(TekananDanGulaDarah[[#This Row],[Tingkat]]>GRendah,TekananDanGulaDarah[[#This Row],[Tingkat]]<GTinggi),\"NORMAL\",\"TINGGI\"))), \"\")","v":"TINGGI"}]
[null,"2018-06-28","12:00:00","Sebelum Makan",141,84,70,140,{"$f":"TekananDanGulaDarah[[#This Row],[Gula Darah]]","v":140},{"$f":"IFERROR(IF(TekananDanGulaDarah[[#This Row],[Tingkat]]=0,\"\",IF(TekananDanGulaDarah[[#This Row],[Tingkat]]<=GRendah,\"RENDAH\",IF(AND(TekananDanGulaDarah[[#This Row],[Tingkat]]>GRendah,TekananDanGulaDarah[[#This Row],[Tingkat]]<GTinggi),\"NORMAL\",\"TINGGI\"))), \"\")","v":"NORMAL"}]
[null,{"$f":"TODAY()","v":"2018-06-28"},"15:00:00","Setelah Makan",132,80,68,90,{"$f":"TekananDanGulaDarah[[#This Row],[Gula Darah]]","v":90},{"$f":"IFERROR(IF(TekananDanGulaDarah[[#This Row],[Tingkat]]=0,\"\",IF(TekananDanGulaDarah[[#This Row],[Tingkat]]<=GRendah,\"RENDAH\",IF(AND(TekananDanGulaDarah[[#This Row],[Tingkat]]>GRendah,TekananDanGulaDarah[[#This Row],[Tingkat]]<GTinggi),\"NORMAL\",\"TINGGI\"))), \"\")","v":"NORMAL"},"Minum obat TD sesudah makan"]
[null,"Rata-Rata",null,null,{"$f":"SUBTOTAL(101,TekananDanGulaDarah[Sistolik])","v":133},{"$f":"SUBTOTAL(101,TekananDanGulaDarah[Diastolik])","v":{"v":82.33333333333333,"d":"82"}},{"$f":"SUBTOTAL(101,TekananDanGulaDarah[Denyut Jantung])","v":{"v":72.33333333333333,"d":"72"}},{"$f":"SUBTOTAL(101,TekananDanGulaDarah[Gula Darah])","v":{"v":103.33333333333333,"d":"103"}}]